lending/lending_fUSD_20241007
["ID","MTS","AMOUNT","RATE_DAILY","PERIOD"]
[340032134,1728339048679,-229.74390373,0.00040546,120]
[340032135,1728339048688,-500.0,0.00040546,30]
[340032137,1728339048697,-500.0,0.00040546,120]
[340032139,1728339048706,-500.0,0.00040546,120]
[340032141,1728339048716,-500.0,0.00040546,120]
[340032143,1728339048725,-500.0,0.00040546,120]
[340032145,1728339048734,-516.13538085,0.00040546,120]
[340032147,1728339048744,-500.0,0.00040546,120]
[340032149,1728339048753,-500.0,0.00040546,120]
[340032151,1728339048762,-211.51007575,0.00040546,120]
[340032153,1728339048771,-500.0,0.00040546,120]
[340032155,1728339048781,-168.68,0.00040546,120]
[340032157,1728339048790,-500.0,0.00040546,120]
[340032159,1728339048799,-500.0,0.00040546,120]
[340032161,1728339048809,-500.0,0.00040546,120]
[340032163,1728339048818,-500.0,0.00040546,120]
[340032165,1728339048827,-595.44,0.00040546,120]
[340032167,1728339048836,-500.0,0.00040546,120]
[340032169,1728339048846,-1709.4,0.00040546,120]
[340032171,1728339048855,-500.0,0.00040546,120]
[340032173,1728339048864,-1840.83,0.00040546,120]
[340032175,1728339048874,-500.0,0.00040546,120]
[340032177,1728339048883,-1730.81,0.00040546,120]
[340032179,1728339048892,-500.0,0.00040546,120]
[340032181,1728339048902,-500.0,0.00040546,120]
[340032183,1728339048911,-500.0,0.00040546,120]
[340032185,1728339048920,-500.0,0.00040546,120]
[340032187,1728339048930,-259.37788742,0.00040546,120]
[340032189,1728339048939,-500.0,0.00040546,120]
[340032191,1728339048948,-500.0,0.00040546,120]
[340032193,1728339048957,-500.0,0.00040546,120]
[340032195,1728339048966,-500.0,0.00040546,120]
[340032197,1728339048975,-500.0,0.00040546,120]
[340032198,1728339048984,-500.0,0.00040546,120]
[340032200,1728339048993,-773.59,0.00040546,120]
[340032202,1728339049002,-220.05829131,0.00040546,120]
[340032204,1728339049011,-500.0,0.00040546,120]
[340032206,1728339049020,-500.0,0.00040546,120]
[340032208,1728339049029,-500.0,0.00040546,90]
[340032210,1728339049040,-500.0,0.00040546,120]
[340032212,1728339049049,-500.0,0.00040546,120]
[340032214,1728339049058,-500.0,0.00040546,120]
[340032216,1728339049066,-500.0,0.00040546,120]
[340032217,1728339049074,-500.0,0.00040546,120]
[340032219,1728339049083,-185.36767877,0.00040546,120]
[340032221,1728339049096,-195.42070398,0.00040546,120]
[340032223,1728339049105,-500.0,0.00040546,120]
[340032225,1728339049115,-710.62,0.00040546,120]
[340032227,1728339049124,-500.0,0.00040546,120]
[340032229,1728339049133,-500.0,0.00040546,120]
[340032231,1728339049142,-400.8565174,0.00040546,120]
[340032233,1728339049151,-500.0,0.00040546,120]
[340032235,1728339049160,-500.0,0.00040546,120]
[340032243,1728339049223,-500.0,0.00040546,120]
[340032245,1728339049233,-500.0,0.00040546,120]
[340032247,1728339049242,-500.0,0.00040546,120]
[340032248,1728339049251,-534.52302368,0.00040546,120]
[340032250,1728339049261,-500.0,0.00040546,120]
[340032252,1728339049271,-500.0,0.00040546,120]
[340032254,1728339049280,-500.0,0.00040546,24]
[340032256,1728339049290,-500.0,0.00040546,120]
[340032258,1728339049300,-500.0,0.00040546,120]
[340032260,1728339049310,-274.90616794,0.00040546,120]
[340032262,1728339049319,-500.0,0.00040546,120]
[340032264,1728339049328,-500.0,0.00040546,120]
[340032266,1728339049338,-508.31165038,0.00040546,120]
[340032268,1728339049347,-500.0,0.00040546,120]
[340032270,1728339049357,-500.0,0.00040546,30]
[340032272,1728339049366,-500.0,0.00040546,120]
[340032274,1728339049375,-2161.84,0.00040546,120]
[340032276,1728339049387,-500.0,0.00040546,120]
[340032278,1728339049397,-500.0,0.00040546,120]
[340032280,1728339049407,-500.0,0.00040546,120]
[340032282,1728339049417,-500.0,0.00040546,120]
[340032284,1728339049426,-500.0,0.00040546,120]
[340032286,1728339049436,-500.0,0.00040546,120]
[340032288,1728339049446,-1561.14,0.00040546,120]
[340032290,1728339049455,-500.0,0.00040546,120]
[340032292,1728339049465,-500.0,0.00040546,120]
[340032294,1728339049475,-177.69119306,0.00040546,120]
[340032296,1728339049485,-1549.6,0.00040546,120]
[340032298,1728339049495,-1303.19,0.00040546,120]
[340032300,1728339049505,-608.54,0.00040546,120]
[340032302,1728339049515,-500.0,0.00040546,120]
[340032304,1728339049524,-500.0,0.00040546,120]
[340032306,1728339049534,-1167.15,0.00040546,120]
[340032308,1728339049543,-1000.0,0.00040546,120]
[340032310,1728339049553,-500.0,0.00040546,120]
[340032312,1728339049563,-500.0,0.00040546,120]
[340032314,1728339049573,-500.0,0.00040546,120]
[340032316,1728339049582,-500.0,0.00040546,120]
[340032318,1728339049592,-500.0,0.00040546,120]
[340032320,1728339049602,-500.0,0.00040546,120]
[340032322,1728339049612,-1536.35,0.00040546,120]
[340032324,1728339049622,-500.0,0.00040546,120]
[340032326,1728339049631,-500.0,0.00040546,120]
[340032329,1728339049648,-2043.47,0.00040546,120]
[340032332,1728339049667,-500.0,0.00040546,120]
[340032334,1728339049684,-500.0,0.00040546,120]
[340032337,1728339049706,-500.0,0.00040546,120]
[340032341,1728339049725,-500.0,0.00040546,120]
[340032343,1728339049743,-1249.9,0.00040546,120]
[340032346,1728339049761,-500.0,0.00040546,120]
[340032349,1728339049776,-500.0,0.00040546,120]
[340032352,1728339049794,-500.0,0.00040546,120]
[340032355,1728339049813,-1876.59,0.00040546,120]
[340032357,1728339049829,-526.09,0.00040546,120]
[340032360,1728339049844,-500.0,0.00040546,120]
[340032363,1728339049860,-1823.29,0.00040546,120]
[340032366,1728339049879,-1457.79,0.00040546,120]
[340032368,1728339049894,-500.0,0.00040546,120]
[340032371,1728339049909,-700.0,0.00040546,120]
[340032373,1728339049924,-500.0,0.00040546,120]
[340032376,1728339049939,-652.28,0.00040546,120]
[340032379,1728339049954,-500.0,0.00040546,120]
[340032381,1728339049970,-557.57,0.00040546,120]
[340032384,1728339049984,-2035.37,0.00040546,120]
[340032386,1728339049998,-500.0,0.00040546,120]
[340032387,1728339050014,-1520.94,0.00040546,120]
[340032388,1728339050028,-500.0,0.00040546,120]
[340032391,1728339050043,-520.51988912,0.00040546,120]
[340032394,1728339050057,-527.19,0.00040546,120]
[340032396,1728339050072,-500.0,0.00040546,120]
[340032399,1728339050087,-500.0,0.00040546,120]
[340032401,1728339050103,-1579.83,0.00040546,120]
[340032403,1728339050118,-239.42305173,0.00040546,120]
[340032406,1728339050134,-500.0,0.00040546,120]
[340032409,1728339050149,-1429.54,0.00040546,120]
[340032411,1728339050165,-597.17,0.00040546,120]
[340032413,1728339050180,-1369.37,0.00040546,120]
[340032416,1728339050196,-500.0,0.00040546,120]
[340032418,1728339050209,-1085.84,0.00040546,120]
[340032420,1728339050219,-500.0,0.00040547,120]
[340032422,1728339050228,-646.75631315,0.00040547,120]
[340032424,1728339050238,-1000.0,0.00040547,120]
[340032426,1728339050247,-500.0,0.00040547,120]
[340032428,1728339050256,-500.0,0.00040547,120]
[340032440,1728339050361,-504.77,0.00040547,120]
[340032443,1728339050380,-1479.03,0.00040547,120]
[340032446,1728339050394,-644.28382,0.00040547,120]
[340032448,1728339050403,-500.0,0.00040547,120]
[340032450,1728339050412,-500.0,0.00040547,120]
[340032452,1728339050422,-500.0,0.00040547,120]
[340032454,1728339050431,-500.0,0.00040547,120]
[340032456,1728339050441,-500.0,0.00040547,120]
[340032457,1728339050450,-500.0,0.00040547,120]
[340032459,1728339050460,-500.0,0.00040547,120]
[340032461,1728339050469,-500.0,0.00040547,120]
[340032463,1728339050479,-500.0,0.00040547,120]
[340032465,1728339050488,-500.0,0.00040547,120]
[340032467,1728339050498,-500.0,0.00040547,120]
[340032469,1728339050507,-500.0,0.00040547,120]
[340032471,1728339050516,-500.0,0.00040547,120]
[340032473,1728339050526,-500.0,0.00040547,120]
[340032475,1728339050535,-535.3,0.00040547,120]
[340032477,1728339050544,-284.2228207,0.00040547,120]
[340032479,1728339050553,-684.53,0.00040547,120]
[340032481,1728339050562,-500.0,0.00040547,120]
[340032483,1728339050572,-500.0,0.00040547,120]
[340032485,1728339050581,-2067.11,0.00040547,120]
[340032487,1728339050590,-500.0,0.00040547,120]
[340032489,1728339050600,-500.0,0.00040547,120]
[340032491,1728339050609,-482.86,0.00040547,120]
[340032492,1728339050620,-500.0,0.00040547,120]
[340032495,1728339050630,-535.74,0.00040547,120]
[340032497,1728339050645,-500.0,0.00040547,120]
[340032498,1728339050657,-1405.1,0.00040547,120]
[340032500,1728339050666,-1977.8,0.00040547,120]
[340032502,1728339050675,-500.0,0.00040547,120]
[340032504,1728339050684,-1715.69,0.00040547,120]
[340032506,1728339050693,-1000.0,0.00040547,30]
[340032508,1728339050704,-500.0,0.00040621,120]
[340032510,1728339050714,-500.0,0.00040621,120]
[340032512,1728339050723,-1861.11,0.00040621,120]
[340032514,1728339050732,-1861.98,0.00040621,120]
[340032516,1728339050742,-500.0,0.00040621,120]
[340032518,1728339050752,-500.0,0.00040621,120]
[340032520,1728339050761,-500.0,0.00040621,120]
[340032522,1728339050771,-500.0,0.00040621,120]
[340032524,1728339050781,-500.0,0.00040621,120]
[340032526,1728339050791,-301.34667978,0.00040621,120]
[340032528,1728339050801,-500.0,0.00040621,120]
[340032530,1728339050812,-500.0,0.00040719,120]
[340032532,1728339050822,-364.63,0.00040719,120]
[340032534,1728339050832,-500.0,0.00040719,120]
[340032536,1728339050843,-500.0,0.00040719,120]
[340032539,1728339050853,-500.0,0.00040719,120]
[340032541,1728339050863,-500.0,0.00040719,120]
[340032542,1728339050872,-500.0,0.00040719,120]
[340032544,1728339050881,-8148.25061146,0.0004079,7]
[340032546,1728339050891,-8148.25061146,0.00040791,7]
[340032548,1728339050901,-8148.25061146,0.000408,7]
[340032550,1728339050910,-8148.25061146,0.00040801,7]
[340032552,1728339050920,-500.0,0.00040811,120]
[340032554,1728339050929,-183.46744698,0.00040812,120]
[340032556,1728339050939,-500.0,0.0004082,120]
[340032558,1728339050949,-500.0,0.0004082,120]
[340032560,1728339050959,-500.0,0.0004082,120]
[340032562,1728339050968,-500.0,0.0004082,120]
[340032564,1728339050977,-1290.33,0.0004082,120]
[340032566,1728339050986,-500.0,0.0004082,120]
[340032568,1728339050995,-500.0,0.0004082,120]
[340032570,1728339051004,-500.0,0.0004082,120]
[340032572,1728339051014,-500.0,0.0004082,120]
[340032574,1728339051023,-500.0,0.0004082,120]
[340032576,1728339051033,-500.0,0.0004082,120]
[340032578,1728339051042,-500.0,0.0004082,120]
[340032580,1728339051051,-500.0,0.0004082,120]
[340032582,1728339051062,-278.01153912,0.0004082,120]
[340032584,1728339051072,-500.0,0.0004082,120]
[340032586,1728339051086,-610.35080995,0.0004082,120]
[340032588,1728339051098,-500.0,0.0004082,120]
[340032590,1728339051109,-500.0,0.0004082,120]
[340032592,1728339051119,-500.0,0.0004082,120]
[340032594,1728339051128,-500.0,0.0004082,120]
[340032596,1728339051139,-500.0,0.0004082,120]
[340032598,1728339051150,-233.08238626,0.0004082,120]
[340032600,1728339051159,-500.0,0.0004082,120]
[340032602,1728339051169,-206.44290747,0.0004082,120]
[340032604,1728339051178,-500.0,0.0004082,120]
[340032606,1728339051188,-500.0,0.0004082,30]
[340032608,1728339051197,-500.0,0.0004082,120]
[340032610,1728339051206,-500.0,0.0004082,120]
[340032612,1728339051215,-500.0,0.0004082,120]
[340032614,1728339051225,-500.0,0.0004082,120]
[340032615,1728339051233,-500.0,0.0004082,120]
[340032617,1728339051243,-378.50068793,0.0004082,120]
[340032619,1728339051252,-589.49426344,0.0004082,120]
[340032621,1728339051262,-168.68,0.0004082,120]
[340032623,1728339051271,-500.0,0.0004082,120]
[340032625,1728339051281,-500.0,0.0004082,120]
[340032627,1728339051290,-500.0,0.0004082,120]
[340032629,1728339051299,-500.0,0.0004082,120]
[340032631,1728339051309,-410.19010734,0.0004082,120]
[340032633,1728339051318,-1709.4,0.0004082,120]
[340032635,1728339051327,-55.63281381,0.0004082,120]
[340032652,1728339051486,-444.36718619,0.0004082,120]
[340032654,1728339051496,-1840.83,0.0004082,120]
[340032656,1728339051506,-500.0,0.0004082,120]
[340032657,1728339051515,-1730.81,0.0004082,120]
[340032659,1728339051525,-500.0,0.0004082,120]
[340032661,1728339051534,-500.0,0.0004082,120]
[340032663,1728339051543,-500.0,0.0004082,120]
[340032665,1728339051552,-500.0,0.0004082,120]
[340032667,1728339051561,-632.19,0.0004082,120]
[340032669,1728339051571,-500.0,0.0004082,120]
[340032671,1728339051580,-500.0,0.0004082,120]
[340032673,1728339051589,-500.0,0.0004082,120]
[340032675,1728339051598,-26.28201981,0.0004082,120]
[340032807,1728339123196,300.0,0.00019725,2]
[340032808,1728339201647,150.0,0.00033,14]
[340032809,1728339308278,12615.0833,0.00034361,2]
[340032810,1728339330148,166.57,0.00010959,2]
[340032811,1728339735093,669.0,0.00015,2]
[340032812,1728339750611,250.0,0.00011,2]
[340032813,1728339751713,300.0,0.00013,2]
[340032815,1728339806435,1799.0,0.00015,2]
[340032816,1728339807219,1619.0,0.00015,2]
[340032817,1728339909178,235321.7516828,0.00011,2]
[340032818,1728339909224,2790.94,0.00011,2]
[340032819,1728339930513,368.93344449,0.000101,2]
[340032820,1728339955806,1279.31311316,6.94e-05,2]
[340032821,1728340023586,452.0,0.0001725,120]
[340032822,1728340024042,452.0,0.0001724,120]
[340032823,1728340024664,452.0,0.0001723,120]
[340032824,1728340031845,1907.41417601,0.000163,120]
[340032825,1728340070727,2117.0,0.00023,60]
[340032827,1728340080682,2030.25529172,0.00022,120]
[340032845,1728340232107,-680.3106,0.000109,2]
[340032846,1728340232116,-474.2105,0.000109,2]
[340032847,1728340232125,-262.1187,0.000109,2]
[340032848,1728340232135,-160.94,0.00010959,2]
[340032849,1728340232144,-150.0,0.00010999,2]
[340032850,1728340232153,-400.36978857,0.00010999,2]
[340032851,1728340232162,-176.34629431,0.00010999,2]
[340032852,1728340232172,-61639.05357288,0.00011,2]
[340032853,1728340232182,-591.8028466,0.00011,2]
[340032854,1728340232195,-8822.59391753,0.00011,2]
[340032855,1728340232283,-316.41,0.00010845,2]
[340032995,1728340238306,-1243.225138,0.00010845,2]
[340032996,1728340238316,-98783.76683074,0.00011,2]
[340033011,1728340240072,-3224.27037394,0.00011,2]
[340033012,1728340240083,-23776.19389263,0.00011,2]
[340033013,1728340240156,-500.4783,0.00011,2]
[340033014,1728340240388,-1590.78604356,0.00011,2]
[340033338,1728340244882,-39821.48750946,0.00011,2]
[340033339,1728340244893,-9956.95801704,0.00011,2]
[340033340,1728340244903,-88571.95000189,0.00011,2]
[340033341,1728340244914,-226531.66,0.00011,2]
[340033346,1728340263779,316.0,0.0001389,120]
[340033347,1728340264247,316.0,0.0001388,120]
[340033348,1728340264963,316.0,0.0001387,120]
[340033349,1728340353416,-1232.9,0.000109,2]
[340033350,1728340353459,-326.1077,0.000109,2]
[340033351,1728340353499,-2491.5994,0.000109,2]
[340033352,1728340353659,-6736.9809,0.000109,2]
[340033353,1728340353705,-989212.412,0.00011,2]
[340033354,1728340476290,-4499.7422,0.000109,2]
[340033355,1728340476417,-633.2,0.000109,2]
[340033356,1728340476461,-156.48,0.00010959,2]
[340033357,1728340476501,-150.0,0.00010999,2]
[340033358,1728340476542,-280.258852,0.00010999,2]
[340033359,1728340476583,-1244280.318948,0.00011,2]
[340033360,1728340503731,221.0,0.00013178,120]
[340033361,1728340504290,221.0,0.00013168,120]
[340033362,1728340504769,221.0,0.00013158,120]
[340033363,1728340623108,-261.553,0.000109,2]
[340033364,1728340623156,-1000.0,0.000109,2]
[340033365,1728340623198,-826.5722,0.000109,2]
[340033366,1728340623243,-1738.8922,0.000109,2]
[340033367,1728340623287,-5750.5323,0.000109,2]
[340033368,1728340623333,-7924.9599,0.000109,2]
[340033369,1728340623378,-217.12067785,0.00010944,2]
[340033370,1728340623432,-983.65279474,0.00010944,2]
[340033371,1728340623589,-700.77021422,0.00010944,2]
[340033372,1728340623637,-676.55898919,0.00010944,2]
[340033373,1728340623683,-150.0,0.00010999,2]
[340033374,1728340623733,-1279769.387724,0.00011,2]
[340033375,1728340743244,155.0,0.00013178,120]
[340033376,1728340743916,155.0,0.00013168,120]
[340033377,1728340744236,155.0,0.00013158,120]
[340033378,1728340863369,155.0,0.00013178,120]
[340033379,1728340863839,155.0,0.00013168,120]
[340033380,1728340864322,155.0,0.00013158,120]
[340033381,1728340983435,150.5,0.00013178,120]
[340033382,1728340983895,150.5,0.00013168,120]
[340033383,1728340984388,150.5,0.00013158,120]
[340033384,1728341085569,500.0,0.000214,120]
[340033385,1728341103423,150.5,0.00013178,120]
[340033386,1728341103873,150.5,0.00013168,120]
[340033387,1728341104341,150.5,0.00013158,120]
[340033388,1728341113174,317.0,0.00023,120]
[340033389,1728341223722,174.9,0.00013178,120]
[340033391,1728341432211,-398.988,0.0001078,2]
[340033392,1728341432221,-150.0,0.00010899,2]
[340033393,1728341432230,-2017.35156291,0.000109,2]
[340033394,1728341432241,-4387.25,0.000109,2]
[340033395,1728341432253,-398.2,0.000109,2]
[340033396,1728341432265,-634.03554,0.000109,2]
[340033397,1728341432300,-1474.18482912,0.000109,2]
[340033398,1728341432420,-12664.66506797,0.000109,2]
[340033399,1728341432429,-1588.1925,0.000109,2]
[340033400,1728341432438,-758.28319188,0.000109,2]
[340033411,1728341438352,-670.01600812,0.000109,2]
[340033412,1728341438362,-1136.0870222,0.000109,2]
[340033413,1728341438454,-7626.72215827,0.000109,2]
[340033414,1728341438481,-554.47157892,0.000109,2]
[340033415,1728341438586,-5914.90784061,0.000109,2]
[340033416,1728341438595,-10164.9362,0.000109,2]
[340033417,1728341438604,-213.8018,0.000109,2]
[340033418,1728341438613,-506.6185,0.000109,2]
[340033419,1728341438623,-827.9067,0.000109,2]
[340033420,1728341438632,-38509.7304,0.000109,2]
[340033421,1728341438641,-1901.4562,0.000109,2]
[340033422,1728341438650,-47645.2758,0.000109,2]
[340033423,1728341438660,-2390.89507388,0.00010944,2]
[340033424,1728341438669,-157.97,0.00010959,2]
[340033425,1728341438678,-196.1811964,0.00010999,2]
[340033426,1728341438687,-840982.88188742,0.00011,2]
[340033427,1728341438698,-785.23100942,0.00011,2]
[340033431,1728341440253,-578.05240098,0.00011,2]
[340033432,1728341440265,-5630.65158727,0.00011,2]
[340033433,1728341440372,-22900.82877106,0.00011,2]
[340033434,1728341440560,-23142.58639126,0.00011,2]
[340033435,1728341440571,-2999.14326809,0.00011,2]
[340033436,1728341440582,-791.18864157,0.00011,2]
[340033437,1728341440592,-965.59842457,0.00011,2]
[340033477,1728341443230,-3948.00395338,0.00011,2]
[340033478,1728341443333,-576.60444887,0.00011,2]
[340033496,1728341443792,-494.92584373,0.00011,2]
[340033498,1728341443803,-666.6150828,0.00011,2]
[340033706,1728341446274,-315675.00000001,0.00011,2]
[340033707,1728341446285,-284.8065685,0.00011,2]
[340033708,1728341446296,-430.5604802,0.00011,2]
[340033709,1728341446402,-610.53864,0.00011,2]
[340033710,1728341446508,-6608.02681,0.00011,2]
[340033711,1728341651074,152.07,0.00010088,2]
[340033720,1728342556342,7198.69,0.00010221,2]
[340033721,1728342590816,475.39,8.35e-05,2]
[340033722,1728342616004,779.08,0.00010228,2]
[340033730,1728342631392,-170.13,0.00010249,2]
[340033731,1728342631402,-200.0,0.00010331,2]
[340033732,1728342631412,-1186.962612,0.00010353,2]
[340033733,1728342631422,-475.39,0.00010613,2]
[340033734,1728342631432,-443.116,0.0001078,2]
[340033735,1728342631441,-158.72,0.0001078,2]
[340033736,1728342631451,-150.0,0.00010899,2]
[340033737,1728342631461,-151.34010265,0.000109,2]
[340033738,1728342631470,-159.85402879,0.000109,2]
[340033739,1728342631482,-2829.66227137,0.000109,2]
[340033740,1728342631494,-3855.44542863,0.000109,2]
[340033741,1728342631504,-1451.1123,0.000109,2]
[340033742,1728342631513,-871.56769983,0.000109,2]
[340033743,1728342631525,-1599.20510017,0.000109,2]
[340033744,1728342631534,-2514.0195,0.000109,2]
[340033745,1728342631544,-1130.06712071,0.000109,2]
[340033746,1728342631555,-1209.76596313,0.000109,2]
[340033747,1728342631566,-3131.15548116,0.000109,2]
[340033748,1728342631577,-2924.00904558,0.000109,2]
[340033749,1728342631586,-1852.42,0.00010934,2]
[340033750,1728342631596,-200.0,0.00010947,2]
[340033751,1728342631606,-242.95,0.00010955,2]
[340033752,1728342631615,-161.66,0.00010959,2]
[340033753,1728342631625,-65.75772445,0.00010959,2]
[340033754,1728342631638,-100.17227555,0.00010959,2]
[340033755,1728342631648,-175.62308792,0.0001099,2]
[340033756,1728342631657,-175.62308792,0.0001099,2]
[340033757,1728342631667,-423.17626135,0.00010999,2]
[340033758,1728342631676,-91.43833726,0.00010999,2]
[340033759,1728342631688,-408.56166274,0.00010999,2]
[340033760,1728342631697,-357.47353726,0.00010999,2]
[340033761,1728342631709,-142.52646274,0.00010999,2]
[340033762,1728342631719,-500.0,0.00010999,2]
[340033763,1728342631728,-500.0,0.00010999,2]
[340033764,1728342631738,-421.22353726,0.00010999,2]
[340033765,1728342631754,-78.77646274,0.00010999,2]
[340033766,1728342631763,-188.04070514,0.00010999,2]
[340033767,1728342631773,-11.79161621,0.00011,2]
[340033768,1728342631788,-541.65536624,0.00011,2]
[340033769,1728342634867,-1098.10124655,0.00011,2]
[340033770,1728342634878,-688.39999162,0.00011,2]
[340033771,1728342634889,-2194.55656055,0.00011,2]
[340033772,1728342634900,-1963.7448324,0.00011,2]
[340033773,1728342634911,-2218.35862201,0.00011,2]
[340033774,1728342634922,-6260.0,0.00011,2]
[340033775,1728342634933,-218086.94153715,0.00011,2]
[340033776,1728342634943,-4773.11977575,0.00011,2]
[340033777,1728342634954,-488.2882881,0.00011,2]
[340033778,1728342634965,-2966.48754,0.00011,2]
[340033779,1728342634976,-592.36206145,0.00011,2]
[340033780,1728342634989,-2035.89616596,0.00011,2]
[340033781,1728342635000,-3504.07490294,0.00011,2]
[340033783,1728342635011,-351.22419554,0.00011,2]
[340033784,1728342635022,-1116.58816483,0.00011,2]
[340033786,1728342635033,-700.0,0.00011,2]
[340033788,1728342635044,-45063.46960216,0.00011,2]
[340033790,1728342635055,-20557.51940339,0.00011,2]
[340033841,1728342637461,-1459.56484938,0.00011,2]
[340033843,1728342637473,-699.69900693,0.00011,2]
[340033845,1728342637589,-4894.4244916,0.00011,2]
[340033846,1728342637601,-2901.32341379,0.00011,2]
[340033847,1728342637613,-1264.43557993,0.00011,2]
[340033848,1728342637624,-2984.0,0.00011,2]
[340033849,1728342637639,-845.302431,0.00011,2]
[340033850,1728342637678,-173979.09565046,0.00011,2]
[340033851,1728342637690,-13142.68775836,0.00011,2]
[340033852,1728342637702,-2953.88686576,0.00011,2]
[340033853,1728342637718,-6234.15366103,0.00011,2]
[340033854,1728342637730,-1985.05084606,0.00011,2]
[340033855,1728342637741,-4887.65969994,0.00011,2]
[340033856,1728342637752,-623.935,0.00011,2]
[340033857,1728342637789,-10583.74922696,0.00011,2]
[340033858,1728342637800,-212802.98676037,0.00011,2]
[340033859,1728342637811,-5192.88827089,0.00011,2]
[340033860,1728342637822,-1221.2,0.00011,2]
[340033861,1728342637834,-166570.90860235,0.00011,2]
[340033862,1728342637845,-1138.0,0.00011,2]
[340033863,1728342637860,-1257.43565756,0.00011,2]
[340033919,1728342639415,-391.951146,0.00011,2]
[340033920,1728342639427,-634.59989641,0.00011,2]
[340033921,1728342639439,-2383.28089997,0.00011,2]
[340033922,1728342639470,-969.65529697,0.00011,2]
[340033923,1728342639483,-465.7513167,0.00011,2]
[340033924,1728342639526,-500.0,0.00010999,2]
[340033925,1728342639536,-3718.43884436,0.00011,2]
[340033926,1728342639548,-375.576201,0.00011,2]
[340033927,1728342639559,-250.82081602,0.00011,2]
[340033928,1728342639571,-1727.99999992,0.00011,2]
[340033929,1728342639582,-6664.80077973,0.00011,2]
[340033930,1728342639593,-99872.80760701,0.00011,2]
[340033931,1728342639611,-158.89716813,0.00010999,2]
[340033932,1728342639619,-97.80683187,0.00011,2]
[340033933,1728342639630,-397.95,0.00011,2]
[340033934,1728342640522,-279.63800001,0.00011,2]
[340033935,1728342640533,-2022.30681193,0.00011,2]
[340033936,1728342640558,-794.79791123,0.00011,2]
[340033937,1728342640569,-590.89153274,0.00011,2]
[340033938,1728342640594,-1458.91842534,0.00011,2]
[340033939,1728342640628,-998.486475,0.00011,2]
[340033940,1728342640639,-2110.66568425,0.00011,2]
[340033941,1728342640650,-34138.3937352,0.00011,2]
[340033942,1728342640660,-61525.0852731,0.00011,2]
[340033943,1728342640671,-27053.90907254,0.00011,2]
[340034121,1728342642453,-1302.1840501,0.00011,2]
[340034123,1728342642464,-1371.56063522,0.00011,2]
[340034128,1728342642509,-1954.9518479,0.00011,2]
[340034130,1728342642521,-255.7062,0.00011,2]
[340034132,1728342642532,-1253.252,0.00011,2]
[340034134,1728342642543,-1250.0,0.00011,2]
[340034137,1728342642565,-18090.28723807,0.00011,2]
[340034139,1728342642578,-276.0867184,0.00011,2]
[340034142,1728342642591,-6306.09327677,0.00011,2]
[340034154,1728342642699,-359.73856219,0.00011,2]
[340034156,1728342642709,-6091.00000027,0.00011,2]
[340034158,1728342642720,-4924.92,0.00011,2]
[340034160,1728342642730,-370046.13355708,0.00011,2]
[340034162,1728342642749,-6130.62450001,0.00011,2]
[340034164,1728342642763,-5420.415,0.00011,2]
[340034166,1728342642774,-7300.0,0.00011,2]
[340034428,1728342645436,-4405.99326382,0.00011,2]